Cogmind - Beta 13 X1 @@@ ROGUE MODE // 2023.06.22 @ 19:01:48 Player: Plexion Result: Destroyed by L8-YAH(R) with Subdweller Beam Cannon Performance ------------- Evolutions (0) 0 Regions Visited (2) 400 Robots Destroyed (22) 110 Value Destroyed (452) 452 Prototype IDs (0) 0 Alien Tech Used (0) 0 Bonus (0) 0 TOTAL SCORE: 962 Bonus ------- None Cogmind --------- Core Integrity 0/250 Matter 263/300 Energy 47/100 System Corruption 0% Temperature Cool (9) Movement Treading (160) Location -10/Subcaves Parts ------- > --- POWER (1) -------- (None) > --- PROPULSION (2) --- Light Treads Light Treads > --- UTILITY (2) ------ Large Storage Unit Targeting Computer > --- WEAPON (2) ------- Subdweller Laser Light Cannon > --- INVENTORY (15) --- Ion Engine Light Ion Engine Light Treads Small Storage Unit Targeting Computer Weapon Shielding EM Pulse Gun Subdweller Laser Assault Rifle Peak State ------------ > --- POWER ------------ Ion Engine > --- PROPULSION ------- Light Treads Light Treads > --- UTILITY ---------- Large Storage Unit Targeting Computer > --- WEAPON ----------- Subdweller Laser Light Assault Rifle > --- INVENTORY -------- Ion Engine Light Ion Engine Light Treads Light Treads Small Storage Unit Targeting Computer Weapon Shielding EM Pulse Gun Assault Rifle Light Cannon [Rating: 9] Favorites ----------- Power Ion Engine Engine Ion Engine Propulsion Light Treads Treads Light Treads Utility Targeting Computer Storage Large Storage Unit Processor Targeting Computer Weapon Assault Rifle Energy Gun Medium Laser Ballistic Gun Assault Rifle Ballistic Cannon Light Cannon Build | -11 -10 -10 ------- Run | Jun Mat Sub Slots Evolved . | . . . Power . | . . . Propulsion . | . . . Utility . | . . . Weapon . | . . . Parts Attached 16 | 6 3 7 Power 2 | 1 1 . Engine 2 | 1 1 . Core . | . . . Reactor . | . . . Propulsion 3 | 2 . 1 Treads 3 | 2 . 1 Leg . | . . . Wheel . | . . . Hover . | . . . Flight . | . . . Utility 3 | 1 2 . Device . | . . . Storage 2 | 1 1 . Processor 1 | . 1 . Hackware . | . . . Protection . | . . . Artifact . | . . . Weapon 8 | 2 . 6 Energy Gun 4 | 1 . 3 Energy Cannon . | . . . Ballistic Gun 3 | 1 . 2 Ballistic Cannon 1 | . . 1 Launcher . | . . . Special Weapon . | . . . Impact Weapon . | . . . Slashing Weapon . | . . . Piercing Weapon . | . . . Special Melee Weapon . | . . . Unidentified Prototypes . | . . . Parts Lost 5 | . . 5 Power 1 | . . 1 Propulsion 1 | . . 1 Utility . | . . . Weapon 3 | . . 3 Highest Loss Streak 3 | . . 3 To Critical Strikes . | . . . Average Slot Usage (%) 96 | . 99 92 Engine 11 | . 14 7 Treads 28 | . 28 28 Storage 14 | . 14 14 Processor 13 | . 13 14 Energy Gun 13 | . 14 13 Ballistic Gun 12 | . 14 10 Ballistic Cannon 1 | . . 4 Naked Turns . | . . . Heaviest Build 30 | 12 29 30 Greatest Support 40 | 40 40 40 Greatest Overweight (x) . | . . . Average Overweight (x) . | . . . Largest Inventory Capacity 15 | 8 15 15 Average Capacity 13 | 7 13 15 Most Carried 10 | 2 10 10 Average Carried 7 | 1 6 9 Final Capacity 15 | 8 15 15 Final Carried 10 | 2 10 9 Class Distribution -------------------- 100% | Mutant Dominant Class ---------------- Mutant | -10/Materials Mutant | -10/Subcaves Resources | -11 -10 -10 ----------- Run | Jun Mat Sub Matter Collected 493 | 198 212 83 Remotely . | . . . Salvage Created 681 | . 502 179 Parts 58 | . 44 14 Haulers Intercepted 1 | . 1 . Recyclers Shooed 1 | . 1 . Parts Field Recycled . | . . . Retrieved Matter . | . . . Parts Self-Destructed 3 | . . 3 Prevented . | . . . Kills | -11 -10 -10 ------- Run | Jun Mat Sub Combat Hostiles Destroyed 15 | . 11 4 Guns 14 | . 11 3 Cannons 1 | . . 1 Classes Destroyed 9 | . 7 2 Worker 2 | . 2 . Tunneler 1 | . 1 . Hauler 1 | . 1 . Recycler 1 | . 1 . Watcher 2 | . 2 . Swarmer 6 | . 6 . Grunt 5 | . 5 . Artisan 1 | . . 1 Subdweller 4 | . . 4 Best Kill Streak 6 | . 6 2 Combat Bots Only 6 | . 6 2 Max Kills in Single Turn 1 | . 1 1 Gunslinging . | . . . Exploded . | . . . Melee . | . . . Uniques/NPCs Destroyed . | . . . Combat | -11 -10 -10 -------- Run | Jun Mat Sub Damage Taken 1043 | . 362 681 Core 269 | . 92 177 Absorbed by Shields . | . . . Core Remaining (%) 100 | 100 . . Volleys Fired 66 | . 41 25 Largest 2 | . 2 2 Hottest 95 | . 70 95 Shots Fired 131 | . 81 50 Gun 117 | . 81 36 Cannon 14 | . . 14 Launcher . | . . . Special . | . . . Kinetic 67 | . 41 26 Thermal 64 | . 40 24 Explosive . | . . . Electromagnetic . | . . . Robot Hit Streak 17 | . 17 15 Robot Miss Streak 2 | . 2 1 Penetration Max . | . . . Secondary Targets . | . . . Shots Hit Robots 100 | . 62 38 Core Hits 36 | . 27 9 Critical Kills . | . . . Critical Parts Destroyed 1 | . . 1 Critical Strikes 9 | . 6 3 Burn 6 | . 6 . Destroy 2 | . . 2 Blast 1 | . . 1 Melee Attacks . | . . . Impact . | . . . Slashing . | . . . Piercing . | . . . Sneak Attacks . | . . . Combat Hostiles . | . . . Follow-up Attacks . | . . . Damage Inflicted 1360 | . 799 561 Guns 1203 | . 785 418 Cannons 143 | . . 143 Explosions . | . . . Melee . | . . . Ramming 14 | . 14 . Kinetic 602 | . 360 242 Thermal 744 | . 425 319 Explosive . | . . . Electromagnetic . | . . . Impact . | . . . Slashing . | . . . Piercing . | . . . Highest Corruption . | . . . Average Corruption . | . . . Corruption Purged . | . . . Corruption Blocked . | . . . Overload Shots . | . . . Overflow Damage . | . . . Projectiles . | . . . Explosions . | . . . Melee . | . . . Knockbacks 1 | . . 1 Impact . | . . . Kinetic 1 | . . 1 Secondary . | . . . Self-Inflicted Damage . | . . . Shots . | . . . Rammed 2 | . 2 . Targets Rammed 2 | . 2 . Kicked . | . . . Crushed . | . . . Highest Temperature 111 | . 111 . Average Temperature 27 | . 27 . Received Heat Transfer 201 | . 123 78 Siege Activations . | . . . Robots Corrupted . | . . . Combat Hostiles . | . . . Parts Fried . | . . . Impact Corruptions . | . . . Robots Melted . | . . . Combat Hostiles . | . . . Parts Melted 2 | . 2 . Heat Transferred 2102 | . 1702 400 Parts Sabotaged . | . . . Parts Stolen . | . . . Parts Stripped . | . . . Power Chain Reactions . | . . . Missiles Intercepted . | . . . Alert | -11 -10 -10 ------- Run | Jun Mat Sub Peak Influence 247 | . 247 . Initial . | . . . Average 76 | . 81 . Maximum Alert Level 1 | . 1 . Low Security (%) 93 | 100 93 . Level 1 6 | . 6 . Level 2 . | . . . Level 3 . | . . . Level 4 . | . . . Level 5 . | . . . High Security . | . . . Max Security . | . . . Squads Dispatched 1 | . 1 . Investigation 1 | . 1 . Extermination . | . . . Reinforcement . | . . . Assault . | . . . Garrison . | . . . Intercept . | . . . Searches Triggered . | . . . Construction Impeded . | . . . Haulers Reinforced . | . . . Active Scanning Responses . | . . . Cargo Convoy Interrupts . | . . . Stealth | -11 -10 -10 --------- Run | Jun Mat Sub Distress Signals 1 | . 1 . Communications Jammed . | . . . Distress Signals . | . . . Times Spotted 29 | . 23 6 Peak Tracking Total 5 | . 5 2 Tactical Retreats 1 | . 1 . Traps | -11 -10 -10 ------- Run | Jun Mat Sub Traps Triggered 4 | . 2 2 Indirectly . | . . . Trap Hack Attempts . | . . . Triggered . | . . . Disarmed . | . . . Reprogrammed . | . . . Reused . | . . . Traps Extracted . | . . . Installed . | . . . Triggered . | . . . Machines | -11 -10 -10 ---------- Run | Jun Mat Sub Machines Disabled . | . . . Max in Single Turn . | . . . Machines Repaired . | . . . Machines Sabotaged . | . . . Overloaded Fab Kills . | . . . Hacking | -11 -10 -10 --------- Run | Jun Mat Sub Machines Accessed 6 | . 6 . Terminals 5 | . 5 . Fabricators . | . . . Repair Stations . | . . . Recycling Units 1 | . 1 . Scanalyzers . | . . . Garrison Access . | . . . Total Hacks 13 | . 13 . Successful 1 | . 1 . Failed 12 | . 12 . Catastrophic 4 | . 4 . Database Lockouts . | . . . Manual 9 | . 9 . Terminals 10 | . 10 . Fabricators . | . . . Repair Stations . | . . . Recycling Units 3 | . 3 . Scanalyzers . | . . . Garrison Access . | . . . Terminal Hacks . | . . . Fabricator Hacks . | . . . Repair Station Hacks . | . . . Recycling Unit Hacks . | . . . Scanalyzer . | . . . Garrison Access Hacks . | . . . Unauthorized Hacks 1 | . 1 . Terminals 1 | . 1 . Disrupt 1 | . 1 . Fabricators . | . . . Repair Stations . | . . . Recycling Units . | . . . Scanalyzers . | . . . Garrison Access . | . . . Data Cores Recovered . | . . . Used . | . . . Hacking Detections 6 | . 6 . Full Trace Events . | . . . Feedback Events . | . . . Feedback Blocked . | . . . Robot Schematics Acquired . | . . . Robots Built . | . . . Authchips . | . . . Time . | . . . Total Robot Build Rating . | . . . Part Schematics Acquired . | . . . Parts Built . | . . . Authchips . | . . . Time . | . . . Total Part Build Rating . | . . . Parts Repaired . | . . . Time . | . . . Parts Recycled . | . . . Recycled Matter . | . . . Retrieved Matter . | . . . Retrieved Components . | . . . Parts Scanalyzed . | . . . Part Schematics Acquired . | . . . Parts Damaged . | . . . Bothacking | -11 -10 -10 ------------ Run | Jun Mat Sub Used RIF Installer . | . . . Robots Hacked . | . . . Non-combat . | . . . Combat . | . . . Robot Hacks Applied . | . . . Relay Couplers Released . | . . . Fabnet Peak Effective % . | . . . Robots Rewired . | . . . Allies Hacked . | . . . Hacks Repelled . | . . . Allies | -11 -10 -10 -------- Run | Jun Mat Sub Total Allies . | . . . Largest Group . | . . . Highest-Rated Group . | . . . Highest-Rated Ally . | . . . Total Orders . | . . . Ally Attacks . | . . . Total Damage . | . . . Kills . | . . . Allies Corrupted . | . . . Allies Melted . | . . . Intel | -11 -10 -10 ------- Run | Jun Mat Sub Robot Analysis Total . | . . . Derelict Logs Recovered . | . . . Drone Launches . | . . . Drone Recoveries . | . . . Exploration | -11 -10 -10 ------------- Run | Jun Mat Sub Turns Passed 1972 | 76 1123 773 Spaces Moved 1067 | 44 597 426 Core 4 | 4 . . Treads 1063 | 40 597 426 Legs . | . . . Wheels . | . . . Hover . | . . . Flight . | . . . Fastest Speed 50 | 50 160 160 Average Speed 159 | 150 160 160 Slowest Speed 160 | 160 160 160 Overloaded Moves . | . . . Propulsion Burnouts . | . . . Robots Hopped . | . . . Cave-ins Triggered . | . . . Exploration Rate (%) 44 | 4 92 37 Regions Visited 2 Branch Regions 1 Pre-discovered Areas . | . . . Known Exits Taken . | . . . Unknown Exits Taken 2 | 1 1 . Scrap Searched . | . . . Spaces Dug . | . . . Terrain Destroyed . | . . . Melee . | . . . Projectile . | . . . AOE . | . . . Terrain Rammed . | . . . Walls Destroyed . | . . . Machines Disabled . | . . . Actions | -11 -10 -10 --------- Run | Jun Mat Sub Total 1201 | 51 681 469 Wait 41 | . 33 8 Move 1066 | 43 597 426 Hop . | . . . Pick Up 10 | 2 6 2 Fast Attach 8 | 6 1 1 Attach 4 | . . 4 Detach 1 | . . 1 Swap 4 | . 2 2 Drop . | . . . Fire 66 | . 41 25 Melee . | . . . Ram . | . . . Kick . | . . . Crush 1 | . 1 . Escape Stasis . | . . . Rewire . | . . . Trap . | . . . Miscellaneous . | . . . Route ------- -11/Junkyard -10/Materials (discovered 6 exits: [*Mat x3] / [*Min x2] / [*Sub]) -10/Subcaves (discovered 1 exit: [*Mat]) History --------- Turn | Location | Event 5 | -11/Junkyard | Discovered new exit (range 15) 77 | -11/Junkyard | Entered Materials 315 | -10/Materials | Build established: Mutant 325 | -10/Materials | Discovered new exit (range 14) 579 | -10/Materials | Discovered new exit (range 11) 687 | -10/Materials | Discovered new exit (range 16) 889 | -10/Materials | Discovered new exit (range 5) 1051 | -10/Materials | Discovered new exit (range 10) 1190 | -10/Materials | Discovered new exit (range 6) 1200 | -10/Materials | Derelicts attacked the area 1200 | -10/Materials | Entered Subcaves 1543 | -10/Subcaves | Ambushed by Subdweller buried in earth 1591 | -10/Subcaves | Core integrity fell below 50% 1622 | -10/Subcaves | Core integrity fell below 20% 1654 | -10/Subcaves | Lost 3 parts (1p2w) 1661 | -10/Subcaves | Discovered new exit (range 6) 1729 | -10/Subcaves | Shifting Twisted Machinery released Sub. Laser 1763 | -10/Subcaves | A swath of the cavern ceiling suddenly collapsed 1848 | -10/Subcaves | A swath of the cavern ceiling suddenly collapsed 1960 | -10/Subcaves | Ambushed by angry Subdweller bent on revenge 1973 | -10/Subcaves | Destroyed by L8-YAH(R) with Subdweller Beam Cannon Last Messages --------------- 01661_ EXIT=FOUND Sub. Laser falls loose from the Twisted Machinery. 01755_ Acquired Sub. Laser. A swath of the cavern ceiling suddenly collapses. 01888_ K1-VSR(R) suffers critical hit (Destroy). 01888_ Destroyed Sub. Monowheel. 01888_ K1-VSR(R) destroyed. 01895_ KX-ABU(R) destroyed. 01898_ Acquired 30 matter. 01900_ Acquired 4 matter. 01906_ Acquired 10 matter. 01913_ Acquired Sub. Laser. 01954_ N0-L9X(u) builds Twisted Machinery. 01956_ N0-L9X(u) Lgt. Ion Engine blasted off. 01956_ N0-L9X(u) cries out in pain. 01956_ N0-L9X(u) destroyed. 01960_ L8-YAH(R) angrily emerges from the Twisted Machinery. 01960_ L8-YAH(R): "SUBMAD!" 01961_ L8-YAH(R) knocked back. 01965_ Lgt. Treads destroyed. Map ----- +----------------------------------------------------+ | | | | | | | | | ?????????????????????????????????????????????????? | | ?????????????????????????????????????????????????? | | ?????????????????????????????????????????????????? | | ?????????????????????????????????????????????????? | | ?????????????????????????????????????????????????? | | ?????????????????????????????????????????????????? | | ?????????????????????????????????????????????????? | | ?????????????????????????????????????????????????? | | ?????????????????????????????????????????????????? | | ?????????????????????????????????????????????????? | | ?????????????????????????????????????????????????? | | ?????????????????????????????????????????????????? | | ?????????????????????????????????????????????????? | | ?????????????????????????????????????????????????? | | ??????????????????????##????????????????#######??? | | ?????????????????????## ##?????######### # # #??? | | ???????????????????### #?????? #" ##?? | | ???????????????????# % #?##???? " #?? | | ????????????????????# "## #?#??####"###?# ##?? | | ?????????????????????# ""R%"#"#"##""##"#### #?? | | ??????????????????????#"" """""#"""##"## # #??? | | ???????????????????????#"@## ####"#""# ###? | | ???????????????????????#="##?#### ##"##"# #? | | ???????????????????????#" ## ""#" #"##" #?# | | ???????????????????????# = "#"" ### ### | | ????????????????????##### "####?## ### "#" | | ????????????????????# ### "#???## #### "" | | ?????????????????????# # ###??## ### ## | | ????????????????????## ##????# ##? | | ????????????????????# ##???## #?? | | ????????????????????# ##??# #?? | | ????????????????????## #?## #?? | | ?????????????????????# ## ### """# | | ?????????????????????## ## [## ## #"" | | ??????????????????????## # !&! # ### ## | | ???????????????????????#### ###&*#####? #? | | ??????????????????????????## ###%&#????# #? | | ???????????????????????????## ## = ##???### ##? | | ????????????????????????????# &&% #?????## ##?? | | ???????????????????????????# # ##??????# #??? | | ???????????????????????????#### ####???????# ???? | | ??????????????????????????????###???????????# ???? | | ?????????????????????????????????????????????????? | | ?????????????????????????????????????????????????? | | ?????????????????????????????????????????????????? | | ?????????????????????????????????????????????????? | +----------------------------------------------------+ Best States ------------- Heat Dissipation 25 Energy Generation 10 Energy Capacity 250 Matter Stores 300 Matter Capacity 300 Sight Range 16 Terrain Scan Density 10 Evasion (%) 40 Targeting Accuracy 5 Recoil Reduction 2 Item Schematics ----------------- None Robot Schematics ------------------ None Fabricated ------------ Nothing Alien Tech Used ----------------- None Achievements -------------- None Challenges ------------ None Game ------ Seed EnhancedGrenadeCarapace Manual? 0 Play Time 00:09:36 Cumulative 408.7 hours Start 2023.06.22 @ 18:54:45 End 2023.06.22 @ 19:01:48 Sessions 1 Manual Loads 0 Difficulty Rogue Special Mode None Game No. 492 Rogue 405 Adventurer 87 Explorer 0 Win Type - Total 21 Types 7/0/12/1/1/0/0/0/0 Lore% 84 Gallery% 90 Achievement% 73 Wizard Run 0 Options --------- ASCII 0 Keyboard 1 Movement Numpad Keybinds 0 Fullscreen 1 Font 18/SmallcapsGlow Map View 76x50 Tactical HUD 1 Map Filters NONE Filters NONE Steam 1 RUN: ca46ac31-ab6d-4012-8139-702b83f81e21